[Event "Schachfestival GM 2018"]
[Site "Lueneburg"]
[Date "2018.07.12"]
[Round "8"]
[White "Reuker, Jari"]
[Black "Wachinger, Nikolas"]
[Result "1/2-1/2"]
[ECO "E32"]
[WhiteElo "2377"]
[BlackElo "2340"]
[Annotator "NA"]
[PlyCount "166"]
[EventDate "2018.07.05"]
[EventType "tourn"]
[EventCountry "GER"]
[SourceTitle "playchess.com"]
[Source "ChessBase"]
[SourceQuality "1"]
[TimeControl "40/5400+30:1800+30"]

1. d4 {[%emt 0:01:55]} Nf6 {[%emt 0:00:00]} 2. c4 {[%emt 0:00:17]} e6 {[%emt 0:00:00]} 3. Nc3 {[%emt 0:00:14]} Bb4 {[%emt 0:00:05]} 4. Qc2 {[%emt 0:00:27]} O-O {[%emt 0:00:17]} 5. a3 {[%emt 0:06:58]} Bxc3+ {[%emt 0:00:54]} 6. Qxc3 {[%emt 0:00:02]} d5 {[%emt 0:00:14]} 7. Bg5 {[%emt 0:00:27]} dxc4 {[%emt 0:00:12] E36: Nimzo-Indian: Classical: 4...d5 5 a3} 8. Qxc4 {[%emt 0:00:04]} b6 {[%emt 0:00:10]} 9. Rd1 {[%emt 0:00:12]} Ba6 {[%emt 0:00:10]} 10. Qa4 {[%emt 0:00:17]} h6 {[%emt 0:00:36]} 11. Bh4 {[%emt 0:00:09]} Qe7 {[%emt 0:00:34]} 12. Nf3 {[%emt 0:00:13]} Rd8 {[%emt 0:00:17]} 13. g4 {[%emt 0:00:52]} (13. e3 Bxf1 14. Rxf1 c5 15. dxc5 Rxd1+ 16. Qxd1 {½-½ (24) Mamedyarov,S (2808)-Nakamura,H (2769) Stavanger 2018}) 13... Bb7 {[%emt 0:00:11]} 14. Bg2 {[%emt 0:09:31] [#]} Nbd7 $146 {[%emt 0:16:44]} ({Predecessor:} 14... c5 15. dxc5 {1-0 (39) Morozevich,A (2692)-Oparin,G (2563) Moscow 2015}) 15. O-O {[%emt 0:10:06]} c5 {[%emt 0:08:55]} 16. h3 {[%emt 0:08:20]} cxd4 {[%emt 0:02:34]} 17. Qxd4 {[%emt 0:14:12]} Nc5 {[%emt 0:05:13]} 18. Qe5 {[%emt 0:04:36]} Rxd1 {[%emt 0:06:29]} 19. Rxd1 {[%emt 0:00:16]} Rd8 {[%emt 0:00:13]} 20. Rd4 {[%emt 0:05:38]} Rxd4 {[%emt 0:04:46]} 21. Qxd4 {[%emt 0:02:34]} Nce4 {[%emt 0:07:58]} 22. g5 {[%emt 0:11:56]} hxg5 {[%emt 0:01:12]} 23. Nxg5 {[%emt 0:00:29]} Nxg5 {[%emt 0:10:30]} 24. Bxg5 {[%emt 0:00:12]} e5 {[%emt 0:00:49]} 25. Qd3 {[%emt 0:02:54]} Bxg2 {[%emt 0:01:02]} 26. Kxg2 {[%emt 0:00:14]} Qb7+ {[%emt 0:01:17]} 27. f3 {[%emt 0:01:40]} Nh5 {[%emt 0:01:42]} 28. Qd6 {[%emt 0:05:29]} e4 {[%emt 0:03:43]} 29. Bd2 {[%emt 0:01:12]} exf3+ {[%emt 0:01:35]} 30. exf3 {[%emt 0:00:02]} Qc8 {[%emt 0:02:11]} 31. Qe5 {[%emt 0:01:45]} Nf6 {[%emt 0:01:18]} 32. Bc3 {[%emt 0:00:43]} Ne8 {[%emt 0:03:54]} 33. h4 {[%emt 0:02:02]} Qd7 {[%emt 0:00:55]} 34. h5 {[%emt 0:01:26]} f6 {[%emt 0:00:22]} 35. Qe4 {[%emt 0:02:37]} Qf7 {[%emt 0:02:05]} 36. Qg4 {[%emt 0:03:37]} f5 {[%emt 0:01:41]} 37. Qg6 {[%emt 0:02:26]} Nc7 {[%emt 0:03:24]} 38. Kg3 {[%emt 0:01:27]} Ne6 {[%emt 0:00:15]} 39. Be5 {[%emt 0:00:51]} Qxg6+ {[%emt 0:04:47]} 40. hxg6 {[%emt 0:00:06]} Kf8 {[%emt 0:00:04]} 41. Kf2 {[%emt 0:03:47]} Ke7 {[%emt 0:01:10]} 42. Ke3 {[%emt 0:03:32]} Kd7 {[%emt 0:00:45]} 43. Kd3 {[%emt 0:03:18]} b5 {[%emt 0:00:17]} 44. Kc3 {[%emt 0:02:08]} a5 {[%emt 0:04:08]} 45. Kb3 {[%emt 0:02:38]} Kc6 {[%emt 0:01:52]} 46. Bc3 {[%emt 0:02:44]} a4+ {[%emt 0:01:10]} 47. Kb4 {[%emt 0:00:31]} Nf4 {[%emt 0:00:16]} 48. Bxg7 {[%emt 0:00:39]} Nxg6 {[%emt 0:00:08]} 49. b3 {[%emt 0:00:30]} axb3 {[%emt 0:00:25]} 50. Kxb3 {[%emt 0:00:08]} Nh4 {[%emt 0:00:23]} 51. f4 {[%emt 0:00:50]} Ng6 {[%emt 0:01:52]} 52. Bh6 {[%emt 0:00:22]} Kc5 {[%emt 0:00:29]} 53. Kc3 {[%emt 0:00:20]} Kd5 {[%emt 0:00:14]} 54. Kb4 {[%emt 0:00:12]} Kc6 {[%emt 0:00:06]} 55. Kc3 {[%emt 0:00:30]} Kc5 {[%emt 0:01:16]} 56. Bg5 {[%emt 0:00:20]} Kd5 {[%emt 0:00:21]} 57. Kb4 {[%emt 0:00:12]} Kc6 {[%emt 0:00:04]} 58. Kc3 {[%emt 0:00:14]} Kc5 {[%emt 0:00:50]} 59. Bh6 {[%emt 0:00:06]} Nh4 {[%emt 0:00:28]} 60. Bf8+ {[%emt 0:00:24]} Kd5 {[%emt 0:00:47]} 61. Kb4 {[%emt 0:00:45]} Kc6 {[%emt 0:00:08]} 62. Kc3 {[%emt 0:01:20]} Nf3 {[%emt 0:00:43]} 63. Be7 {[%emt 0:02:33]} Kd5 {[%emt 0:00:58]} 64. Bf6 {[%emt 0:01:42]} Ng1 {[%emt 0:00:57]} 65. Kb4 {[%emt 0:01:09]} Kc6 {[%emt 0:00:05]} 66. Bd4 {[%emt 0:01:06]} Ne2 {[%emt 0:00:21]} 67. Be5 {[%emt 0:00:53]} Ng3 {[%emt 0:00:13]} 68. a4 {[%emt 0:01:22]} bxa4 {[%emt 0:00:07]} 69. Kxa4 {[%emt 0:00:01]} Kd5 {[%emt 0:00:10]} 70. Kb3 {[%emt 0:00:08]} Ke4 {[%emt 0:00:05]} 71. Kc2 {[%emt 0:00:10]} Ne2 {[%emt 0:00:11]} 72. Kd2 {[%emt 0:00:14]} Nxf4 {[%emt 0:00:07]} 73. Bb8 {[%emt 0:00:29]} Nd3 {[%emt 0:00:39]} 74. Ke2 {[%emt 0:00:07]} Ne5 {[%emt 0:00:06]} 75. Bxe5 {[%emt 0:00:11]} Kxe5 {[%emt 0:00:04]} 76. Ke3 {[%emt 0:00:06]} f4+ {[%emt 0:00:06]} 77. Kf3 $11 {[%emt 0:00:03]} Kf5 {[%emt 0:00:05]} 78. Kf2 {[%emt 0:00:04]} Ke4 {[%emt 0:00:04]} 79. Ke2 {[%emt 0:00:04]} f3+ {[%emt 0:00:05]} 80. Kf2 {[%emt 0:00:04]} Kf4 {[%emt 0:00:04]} 81. Kf1 {[%emt 0:00:03]} Ke3 {[%emt 0:00:05]} 82. Ke1 {[%emt 0:00:04]} f2+ {[%emt 0:00:04]} 83. Kf1 {[%emt 0:00:03]} Kf3 1/2-1/2

[Event "Schachfestival GM 2018"]
[Site "Lueneburg"]
[Date "2018.07.13"]
[Round "9"]
[White "Malakhatko, Vadim"]
[Black "Reuker, Jari"]
[Result "*"]
[WhiteElo "2499"]
[BlackElo "2377"]
[Annotator "ChessBase"]
[PlyCount "37"]
[EventDate "2018.07.05"]
[EventType "tourn"]
[EventCountry "GER"]
[SourceTitle "playchess.com"]
[Source "ChessBase"]
[SourceQuality "1"]
[TimeControl "40/5400+30:1800+30"]

1. c4 {[%emt 0:00:00]} Nf6 {[%emt 0:02:25]} 2. Nf3 {[%emt 0:00:00]} e6 {[%emt 0:00:07]} 3. g3 {[%emt 0:00:00]} d5 {[%emt 0:00:07]} 4. Bg2 {[%emt 0:00:00]} Be7 {[%emt 0:00:12]} 5. O-O {[%emt 0:00:07]} O-O {[%emt 0:00:08]} 6. d4 {[%emt 0:00:05]} dxc4 {[%emt 0:00:09]} 7. Ne5 {[%emt 0:00:06]} Nc6 {[%emt 0:00:20]} 8. Nxc6 {[%emt 0:00:07]} bxc6 {[%emt 0:00:05]} 9. Na3 {[%emt 0:00:05]} Bxa3 {[%emt 0:00:08]} 10. bxa3 {[%emt 0:00:03]} Rb8 {[%emt 0:00:51]} 11. Qa4 {[%emt 0:14:52]} Qxd4 {[%emt 0:22:50]} 12. Be3 {[%emt 0:00:05]} Qe5 {[%emt 0:05:06]} 13. Qxc4 {[%emt 0:02:25]} Nd5 {[%emt 0:05:32]} 14. Bc5 {[%emt 0:06:18]} Nb6 {[%emt 0:13:18]} 15. Qc2 {[%emt 0:00:34]} Rd8 {[%emt 0:00:41]} 16. f4 {[%emt 0:12:03]} Qf6 {[%emt 0:02:05]} 17. Rad1 {[%emt 0:00:22]} Bb7 {[%emt 0:09:13]} 18. a4 {[%emt 0:09:35]} a5 {[%emt 0:04:17]} 19. e3 {[%emt 0:18:49]} *

[Event "Schachfestival GM 2018"]
[Site "Lueneburg"]
[Date "2018.07.13"]
[Round "9"]
[White "Drozdowski, Kacper"]
[Black "Winterberg, Lukas"]
[Result "*"]
[WhiteElo "2455"]
[BlackElo "2372"]
[Annotator "ChessBase"]
[PlyCount "39"]
[EventDate "2018.07.05"]
[EventType "tourn"]
[EventCountry "GER"]
[SourceTitle "playchess.com"]
[Source "ChessBase"]
[SourceQuality "1"]
[TimeControl "40/5400+30:1800+30"]

1. e4 {[%emt 0:00:00]} c6 {[%emt 0:01:05]} 2. c4 {[%emt 0:00:00]} d5 {[%emt 0:00:26]} 3. cxd5 {[%emt 0:00:00]} cxd5 {[%emt 0:00:18]} 4. exd5 {[%emt 0:00:06]} Nf6 {[%emt 0:00:17]} 5. Qa4+ {[%emt 0:00:15]} Nbd7 {[%emt 0:00:51]} 6. Nc3 {[%emt 0:00:06]} g6 {[%emt 0:01:58]} 7. Nf3 {[%emt 0:00:07]} Bg7 {[%emt 0:00:09]} 8. Bc4 {[%emt 0:00:22]} O-O {[%emt 0:00:18]} 9. d3 {[%emt 0:00:05]} a6 {[%emt 0:00:30]} 10. Qa3 {[%emt 0:01:17]} Re8 {[%emt 0:04:25]} 11. O-O {[%emt 0:01:43]} Bf8 {[%emt 0:03:01]} 12. Be3 {[%emt 0:24:36]} b6 {[%emt 0:06:32]} 13. Bb5 {[%emt 0:14:48]} e6 {[%emt 0:07:07]} 14. Qa4 {[%emt 0:00:29]} Bb7 {[%emt 0:23:39]} 15. Bc6 {[%emt 0:01:07]} Bxc6 {[%emt 0:01:29]} 16. dxc6 {[%emt 0:00:17]} Nc5 {[%emt 0:01:33]} 17. Qh4 {[%emt 0:02:10]} Nd5 {[%emt 0:02:34]} 18. Bg5 {[%emt 0:11:52]} Qc7 {[%emt 0:08:40]} 19. Ne4 {[%emt 0:04:14]} Nxd3 {[%emt 0:03:24]} 20. Rad1 {[%emt 0:02:54]} *

[Event "Schachfestival GM 2018"]
[Site "Lueneburg"]
[Date "2018.07.13"]
[Round "9"]
[White "Wachinger, Nikolas"]
[Black "Karpatchev, Aleksandr"]
[Result "*"]
[WhiteElo "2340"]
[BlackElo "2469"]
[Annotator "ChessBase"]
[PlyCount "33"]
[EventDate "2018.07.05"]
[EventType "tourn"]
[EventCountry "GER"]
[SourceTitle "playchess.com"]
[Source "ChessBase"]
[SourceQuality "1"]
[TimeControl "40/5400+30:1800+30"]

1. e4 {[%emt 0:00:00]} e5 {[%emt 0:00:31]} 2. Nf3 {[%emt 0:00:00]} Nc6 {[%emt 0:00:05]} 3. d4 {[%emt 0:00:01]} exd4 {[%emt 0:00:05]} 4. Nxd4 {[%emt 0:00:06]} Bc5 {[%emt 0:02:08]} 5. Nb3 {[%emt 0:00:12]} Bb6 {[%emt 0:00:04]} 6. Nc3 {[%emt 0:00:07]} Nf6 {[%emt 0:01:19]} 7. Bg5 {[%emt 0:00:21]} h6 {[%emt 0:00:24]} 8. Bh4 {[%emt 0:00:16]} d6 {[%emt 0:00:16]} 9. a4 {[%emt 0:22:49]} a6 {[%emt 0:03:06]} 10. Qd2 {[%emt 0:17:35]} Be6 {[%emt 0:03:58]} 11. O-O-O {[%emt 0:15:28]} Nxe4 {[%emt 0:13:00]} 12. Qf4 {[%emt 0:00:38]} Ng5 {[%emt 0:00:09]} 13. Ne4 {[%emt 0:04:17]} f6 {[%emt 0:15:57]} 14. Nec5 {[%emt 0:04:42]} Bc8 {[%emt 0:12:47]} 15. Bc4 {[%emt 0:11:03]} Qe7 {[%emt 0:00:17]} 16. Rhe1 {[%emt 0:00:24]} Ne5 {[%emt 0:00:06]} 17. Qg3 {[%emt 0:04:49]} *

[Event "Schachfestival GM 2018"]
[Site "Lueneburg"]
[Date "2018.07.13"]
[Round "9"]
[White "Barath, Madhan"]
[Black "Lubbe, Nikolas"]
[Result "*"]
[ECO "E90"]
[WhiteElo "2321"]
[BlackElo "2463"]
[Annotator "ChessBase"]
[PlyCount "35"]
[EventDate "2018.07.05"]
[EventType "tourn"]
[EventCountry "GER"]
[SourceTitle "playchess.com"]
[Source "ChessBase"]
[SourceQuality "1"]
[TimeControl "40/5400+30:1800+30"]

1. d4 {[%emt 0:00:00]} Nf6 {[%emt 0:00:00]} 2. c4 {[%emt 0:00:00]} c5 {[%emt 0:00:00]} 3. d5 {[%emt 0:00:00]} g6 {[%emt 0:00:00]} 4. Nc3 {[%emt 0:00:00]} Bg7 {[%emt 0:00:08]} 5. e4 {[%emt 0:00:00]} d6 {[%emt 0:00:06]} 6. Nf3 {[%emt 0:10:28]} O-O {[%emt 0:01:09]} 7. Bd3 {[%emt 0:00:08]} e6 {[%emt 0:01:03]} 8. h3 {[%emt 0:07:18]} exd5 {[%emt 0:05:14]} 9. exd5 {[%emt 0:00:08]} Re8+ {[%emt 0:03:30]} 10. Be3 {[%emt 0:01:59]} Bh6 {[%emt 0:02:23]} 11. O-O {[%emt 0:02:18]} Bxe3 {[%emt 0:02:28]} 12. fxe3 {[%emt 0:00:05]} Nbd7 {[%emt 0:03:07]} 13. e4 {[%emt 0:11:26]} a6 {[%emt 0:10:07]} 14. a4 {[%emt 0:02:35]} Kg7 {[%emt 0:05:05]} 15. Rf2 {[%emt 0:13:30]} Qe7 {[%emt 0:08:24]} 16. Qd2 {[%emt 0:08:44]} Ng8 {[%emt 0:03:21]} 17. Raf1 {[%emt 0:11:06]} f6 {[%emt 0:03:40]} 18. e5 {[%emt 0:09:16]} *